Cogmind - Beta 14 @@@ ROGUE MODE // 2025.04.30 @ 22:09:47 Player: Polariusz Result: Destroyed by S-27 Virus with Autogun Performance ------------- Evolutions (3) 1500 Regions Visited (6) 1200 Robots Destroyed (64) 320 Value Destroyed (2107) 2107 Prototype IDs (2) 40 Alien Tech Used (0) 0 Bonus (0) 0 TOTAL SCORE: 5167 Bonus ------- None Cogmind --------- Core Integrity 0/700 Matter 192/300 Energy 69/100 System Corruption 8% Temperature Cool (0) Movement Core (50) Location -7/Factory Parts ------- > --- POWER (2) -------- (None) > --- PROPULSION (3) --- (None) > --- UTILITY (6) ------ Advanced Visual Processing Unit Hacking Suite > --- WEAPON (2) ------- (None) > --- INVENTORY (5) ---- Melee Analysis Suite Gauss Cannon Peak State ------------ > --- POWER ------------ Hybrid Deuterium Engine Hybrid Deuterium Engine > --- PROPULSION ------- Armored Wheel Armored Wheel Armored Wheel > --- UTILITY ---------- Improved Heat Sink Trap Scanner Visual Processing Unit Melee Analysis Suite Improved Light Armor Plating Hacking Suite > --- WEAPON ----------- Greatsword > --- INVENTORY -------- Improved Light Armor Plating Reactive Plating High-powered Shotgun Gauss Cannon [Rating: 40] Favorites ----------- Power Light Ion Engine Engine Light Ion Engine Power Core Light Nuclear Core Propulsion Armored Wheel Treads Light Treads Leg Aluminum Leg Wheel Armored Wheel Hover Unit Hover Unit Utility Trap Scanner Device Trap Scanner Storage Small Storage Unit Processor Melee Analysis Suite Hackware Hacking Suite Protection Light Armor Plating Weapon Light Assault Rifle Energy Gun Field Laser Energy Cannon Ion Cannon Ballistic Gun Light Assault Rifle Ballistic Cannon Light Cannon Impact Weapon Hammer Slashing Weapon Greatsword Build | -11 -10 -10 -8 -7 -7 -7 ------- Run | Yrd Mat Sub Mat Fac Was Fac Slots Evolved 6 | . . . 4 2 . . Power 1 | . . . 1 . . . Propulsion 1 | . . . 1 . . . Utility 4 | . . . 2 2 . . Weapon . | . . . . . . . Parts Attached 99 | 6 17 9 43 7 . 17 Power 13 | 1 3 1 4 1 . 3 Engine 9 | 1 3 1 2 . . 2 Core 4 | . . . 2 1 . 1 Reactor . | . . . . . . . Propulsion 25 | 2 4 3 13 . . 3 Treads 3 | . . . 3 . . . Leg 8 | 2 4 . 2 . . . Wheel 12 | . . 3 6 . . 3 Hover 2 | . . . 2 . . . Flight . | . . . . . . . Utility 34 | 1 9 1 13 5 . 5 Device 14 | . 4 . 9 1 . . Storage 1 | 1 . . . . . . Processor 4 | . 1 . 1 1 . 1 Hackware 2 | . . . . 1 . 1 Protection 13 | . 4 1 3 2 . 3 Artifact . | . . . . . . . Weapon 27 | 2 1 4 13 1 . 6 Energy Gun 3 | . . . 2 . . 1 Energy Cannon 4 | . . . 4 . . . Ballistic Gun 11 | 2 . 4 3 . . 2 Ballistic Cannon 2 | . 1 . . . . 1 Launcher . | . . . . . . . Special Weapon . | . . . . . . . Impact Weapon 4 | . . . 3 1 . . Slashing Weapon 3 | . . . 1 . . 2 Piercing Weapon . | . . . . . . . Special Melee Weapon . | . . . . . . . Unidentified Prototypes . | . . . . . . . Parts Lost 40 | . 2 5 12 3 . 18 Power 5 | . 1 1 1 . . 2 Propulsion 10 | . . . 4 . . 6 Utility 15 | . 1 2 5 2 . 5 Weapon 10 | . . 2 2 1 . 5 Highest Loss Streak 11 | . 2 3 3 3 . 11 To Critical Strikes . | . . . . . . . Average Slot Usage (%) 85 | . 97 83 80 81 84 78 Engine 9 | . 13 12 10 . . 7 Core 2 | . . . 2 7 7 3 Treads 1 | . . . 5 . . . Leg 9 | . 28 9 5 . . . Wheel 10 | . . 18 6 23 23 15 Device 13 | . 3 . 28 19 15 9 Processor 7 | . 12 4 . 7 15 14 Hackware 2 | . . . . 3 7 10 Protection 6 | . 8 9 4 7 7 6 Energy Gun 1 | . . . 3 4 . . Energy Cannon 1 | . . . 4 1 . . Ballistic Gun 11 | . 25 23 4 . . . Ballistic Cannon 1 | . 2 4 . . . 1 Impact Weapon 1 | . . . 3 5 7 . Peak Build Rating 40 | 6 7 14 28 33 28 40 Average Rating 18 | 4 6 10 20 28 28 33 On Entrance 14 | . 6 7 8 27 28 28 Naked Turns . | . . . . . . . Heaviest Build 31 | 10 10 31 31 28 13 25 Greatest Support 60 | 20 20 40 60 36 36 48 Greatest Overweight (x) 9 | 2 . . 9 . . 5 Average Overweight (x) . | . . . . . . . Largest Inventory Capacity 8 | 8 8 5 5 5 5 5 Average Capacity 5 | 7 5 5 5 5 5 5 Most Carried 5 | 5 5 5 5 5 5 5 Average Carried 3 | 1 3 3 3 3 5 3 Final Capacity 8 | 8 5 5 5 5 5 5 Final Carried 5 | 1 4 5 3 5 5 2 Class Distribution -------------------- 56% | Mutant 23% | Scavenger-Mutant 7% | Subdweller-Mutant 5% | Gladiator 3% | Hacker-Gladiator Dominant Class ---------------- Mutant | -10/Materials Subdweller-Mutant | -10/Subcaves Scavenger-Mutant | -8/Materials Mutant | -7/Factory Scavenger-Mutant | -7/Waste Gladiator | -7/Factory Resources | -11 -10 -10 -8 -7 -7 -7 ----------- Run | Yrd Mat Sub Mat Fac Was Fac Matter Collected 1496 | 247 302 199 467 145 . 136 Remotely . | . . . . . . . Salvage Created 2439 | . 382 234 1136 423 . 264 Parts 115 | . 38 19 45 6 . 7 Haulers Intercepted . | . . . . . . . Recyclers Shooed 4 | . 1 . 3 . . . Parts Field Recycled . | . . . . . . . Retrieved Matter . | . . . . . . . Parts Self-Destructed 4 | . . 4 . . . . Prevented . | . . . . . . . Kills | -11 -10 -10 -8 -7 -7 -7 ------- Run | Yrd Mat Sub Mat Fac Was Fac Combat Hostiles Destroyed 49 | . 13 7 17 6 . 6 Melee 5 | . . . 1 1 . 3 Guns 26 | . 12 5 8 . . 1 Cannons 10 | . 1 2 4 1 . 2 AOE 1 | . . . 1 . . . Classes Destroyed 14 | . 6 . 3 4 . 1 Worker 1 | . . . . 1 . . Builder 3 | . 1 . 2 . . . Recycler 3 | . . . 2 1 . . Mechanic 1 | . . . . 1 . . Operator 1 | . 1 . . . . . Watcher 6 | . 3 . 2 1 . . Swarmer 9 | . 9 . . . . . Grunt 20 | . 3 . 10 3 . 4 Brawler 1 | . . . 1 . . . Duelist 1 | . . . . . . 1 Sentry 7 | . . . 6 . . 1 Hunter 2 | . . . . 2 . . Programmer 1 | . . . . 1 . . Subdweller 8 | . 1 7 . . . . Best Kill Streak 5 | . 4 4 5 2 . 3 Combat Bots Only 4 | . 3 4 4 1 . 3 Max Kills in Single Turn 2 | . 2 1 2 1 . 1 Gunslinging 1 | . 1 . . . . . Exploded 1 | . . . 1 . . . Melee 1 | . . . 1 1 . 1 Uniques/NPCs Destroyed . | . . . . . . . Combat | -11 -10 -10 -8 -7 -7 -7 -------- Run | Yrd Mat Sub Mat Fac Was Fac Hostile Shots Fired 544 | . 87 46 111 78 . 222 Missed 154 | . 25 10 27 24 . 68 Damage Taken 5560 | . 578 952 1387 768 . 1875 Core 1132 | . 62 140 223 125 . 582 Absorbed by Shields . | . . . . . . . Redirected to Shielding 29 | . . . . . . 29 Regen/Repaired (Parts) 41 | . 41 . . . . . Core Remaining (%) 59 | 100 . 19 59 . . . Volleys Fired 166 | . 65 26 54 3 . 18 Largest 2 | . 2 2 2 2 . 2 Hottest 123 | . 55 68 123 123 . 73 Shots Fired 324 | . 130 51 105 6 . 32 Gun 246 | . 127 37 63 3 . 16 Cannon 78 | . 3 14 42 3 . 16 Launcher . | . . . . . . . Special . | . . . . . . . Kinetic 255 | . 130 51 44 . . 30 Thermal 55 | . . . 49 6 . . Explosive . | . . . . . . . Electromagnetic 14 | . . . 12 . . 2 Robot Hit Streak 18 | . 8 10 18 1 . 4 Robot Miss Streak 4 | . 4 2 3 2 . 3 Penetration Max 1 | . . . . . . 1 Secondary Targets 1 | . 1 . . . . . Max Gunslinging Chain 1 | . 1 . . . . . Shots Hit Robots 264 | . 73 37 97 25 . 32 Core Hits 83 | . 31 12 27 4 . 9 Critical Kills 3 | . . 1 1 1 . . Critical Parts Destroyed 10 | . . . 3 7 . . Critical Strikes 18 | . . 3 4 8 . 3 Meltdown 1 | . . . 1 . . . Destroy 1 | . . 1 . . . . Blast 3 | . . 2 . . . 1 Smash 11 | . . . 3 8 . . Sever 2 | . . . . . . 2 Melee Attacks 96 | . . . 38 42 . 16 Impact 77 | . . . 35 42 . . Slashing 19 | . . . 3 . . 16 Piercing . | . . . . . . . Sneak Attacks 6 | . . . 3 3 . . Combat Hostiles . | . . . . . . . Follow-up Attacks . | . . . . . . . Damage Inflicted 5490 | . 619 648 2337 793 . 1093 Guns 2084 | . 565 489 837 . . 193 Cannons 1230 | . 54 159 708 57 . 252 Explosions 224 | . . . 224 . . . Melee 1952 | . . . 568 736 . 648 Ramming . | . . . . . . . Kinetic 2266 | . 619 648 554 . . 445 Thermal 1093 | . . . 1036 57 . . Explosive . | . . . . . . . Electromagnetic 179 | . . . 179 . . . Impact 1304 | . . . 568 736 . . Slashing 648 | . . . . . . 648 Piercing . | . . . . . . . Highest Corruption 8 | . . . 1 . 7 8 Average Corruption 5 | . . . 1 . 7 7 Corruption Purged . | . . . . . . . Corruption Blocked . | . . . . . . . Effects 21 | . . . . . 3 18 Message Errors 6 | . . . . . . 6 Matter Fused 2 | . . . . . 1 1 Heat Flow Errors 5 | . . . . . 1 4 Energy Discharges 4 | . . . . . . 4 Parts Rejected 1 | . . . . . . 1 Data Loss (minor) 3 | . . . . . 1 2 Overload Shots . | . . . . . . . Overflow Damage 587 | . . . 206 287 . 94 Projectiles 36 | . . . 20 . . 16 Explosions 47 | . . . 47 . . . Melee 504 | . . . 139 287 . 78 Knockbacks 15 | . . . 3 7 . 5 Impact 10 | . . . 3 7 . . Kinetic 4 | . . . . . . 4 Secondary 1 | . . . . . . 1 Self-Inflicted Damage 77 | . . . 77 . . . Shots 2 | . . . 2 . . . Rammed . | . . . . . . . Targets Rammed . | . . . . . . . Kicked . | . . . . . . . Crushed . | . . . . . . . Highest Temperature 332 | . 61 . 332 30 108 275 Average Temperature 72 | . 11 . 104 15 69 82 Received Heat Transfer 1389 | . 102 174 639 210 . 264 Effects 1 | . . . 1 . . . Energy Bleed 1 | . . . 1 . . . Siege Activations . | . . . . . . . Robots Corrupted 12 | . . . 5 7 . . Combat Hostiles 6 | . . . 2 4 . . Parts Fried 14 | . . . 7 7 . . Impact Corruptions 23 | . . . 10 13 . . Robots Melted 1 | . . . 1 . . . Combat Hostiles 1 | . . . 1 . . . Parts Melted 6 | . . 1 5 . . . Heat Transferred 1743 | . . . 1669 74 . . Parts Sabotaged . | . . . . . . . Parts Stolen . | . . . . . . . Parts Stripped . | . . . . . . . Power Chain Reactions 3 | . . . 3 . . . Alert | -11 -10 -10 -8 -7 -7 -7 ------- Run | Yrd Mat Sub Mat Fac Was Fac Peak Influence 390 | . 267 . 390 306 104 157 Initial 146 | . . . . 146 89 72 Average 151 | . 139 . 185 197 94 77 Maximum Alert Level 2 | . 1 . 2 1 . . Low Security (%) 71 | 100 82 . 54 50 100 100 Level 1 28 | . 17 . 45 49 . . Level 2 . | . . . . . . . Level 3 . | . . . . . . . Level 4 . | . . . . . . . Level 5 . | . . . . . . . High Security . | . . . . . . . Max Security . | . . . . . . . Squads Dispatched 11 | . 3 . 3 1 . 4 Investigation 2 | . 1 . 1 . . . Extermination 1 | . . . . . . 1 Reinforcement 5 | . 2 . 2 1 . . Assault . | . . . . . . . Garrison 3 | . . . . . . 3 Intercept . | . . . . . . . Searches Triggered . | . . . . . . . Construction Impeded . | . . . . . . . Haulers Reinforced . | . . . . . . . Active Scanning Responses . | . . . . . . . Cargo Convoy Interrupts . | . . . . . . . Stealth | -11 -10 -10 -8 -7 -7 -7 --------- Run | Yrd Mat Sub Mat Fac Was Fac Distress Signals 7 | . 2 . 4 1 . . Communications Jammed . | . . . . . . . Distress Signals . | . . . . . . . Times Spotted 107 | . 22 13 36 15 6 15 Peak Tracking Total 9 | . 4 5 7 4 6 9 Tactical Retreats 11 | . 1 . 6 3 . 1 Traps | -11 -10 -10 -8 -7 -7 -7 ------- Run | Yrd Mat Sub Mat Fac Was Fac Traps Triggered 3 | . 1 . . 1 . 1 Indirectly . | . . . . . . . Trap Hack Attempts . | . . . . . . . Triggered . | . . . . . . . Disarmed . | . . . . . . . Reprogrammed 9 | . 9 . . . . . Reused 2 | . 2 . . . . . Traps Extracted . | . . . . . . . Installed . | . . . . . . . Triggered 1 | . 1 . . . . . Machines | -11 -10 -10 -8 -7 -7 -7 ---------- Run | Yrd Mat Sub Mat Fac Was Fac Machines Disabled 3 | . . . 2 . . 1 Max in Single Turn 1 | . . . 1 . . 1 Machines Repaired . | . . . . . . . Machines Dismantled . | . . . . . . . Machines Sabotaged . | . . . . . . . Overloaded Fab Kills . | . . . . . . . Hacking | -11 -10 -10 -8 -7 -7 -7 --------- Run | Yrd Mat Sub Mat Fac Was Fac Machines Accessed 12 | . 5 . 5 1 . 1 Terminals 10 | . 4 . 4 1 . 1 Fabricators . | . . . . . . . Repair Stations 1 | . 1 . . . . . Recycling Units . | . . . . . . . Scanalyzers 1 | . . . 1 . . . Garrison Access . | . . . . . . . Total Hacks 32 | . 18 . 12 1 . 1 Successful 15 | . 8 . 7 . . . Failed 17 | . 10 . 5 1 . 1 Catastrophic 4 | . 2 . 1 1 . . Database Lockouts . | . . . . . . . Manual . | . . . . . . . Terminals 28 | . 16 . 10 1 . 1 Fabricators . | . . . . . . . Repair Stations 2 | . 2 . . . . . Recycling Units . | . . . . . . . Scanalyzers 2 | . . . 2 . . . Garrison Access . | . . . . . . . Terminal Hacks 11 | . 6 . 5 . . . Record 3 | . . . 3 . . . Robot Analysis 1 | . . . 1 . . . Prototype ID Bank 1 | . 1 . . . . . Emergency Access Points 1 | . . . 1 . . . Locate Traps 2 | . 2 . . . . . Reprogram Traps 2 | . 2 . . . . . Assault Status 1 | . 1 . . . . . Fabricator Hacks . | . . . . . . . Repair Station Hacks 2 | . 2 . . . . . Scan Component 1 | . 1 . . . . . Repair 1 | . 1 . . . . . Recycling Unit Hacks . | . . . . . . . Scanalyzer 2 | . . . 2 . . . Insert Component 1 | . . . 1 . . . Analyze 1 | . . . 1 . . . Garrison Access Hacks . | . . . . . . . Unauthorized Hacks . | . . . . . . . Terminals . | . . . . . . . Fabricators . | . . . . . . . Repair Stations . | . . . . . . . Recycling Units . | . . . . . . . Scanalyzers . | . . . . . . . Garrison Access . | . . . . . . . Data Cores Recovered . | . . . . . . . Used . | . . . . . . . Hacking Detections 12 | . 5 . 5 1 . 1 Full Trace Events 1 | . . . 1 . . . Feedback Events . | . . . . . . . Feedback Blocked . | . . . . . . . Robot Schematics Acquired . | . . . . . . . Robots Built . | . . . . . . . Authchips . | . . . . . . . Time . | . . . . . . . Total Robot Build Rating . | . . . . . . . Part Schematics Acquired 1 | . . . 1 . . . Parts Built . | . . . . . . . Authchips . | . . . . . . . Time . | . . . . . . . Total Part Build Rating . | . . . . . . . Parts Repaired 1 | . 1 . . . . . Time 26 | . 26 . . . . . Parts Recycled . | . . . . . . . Recycled Matter . | . . . . . . . Retrieved Matter . | . . . . . . . Retrieved Components . | . . . . . . . Parts Scanalyzed 1 | . . . 1 . . . Part Schematics Acquired 1 | . . . 1 . . . Parts Damaged . | . . . . . . . Bothacking | -11 -10 -10 -8 -7 -7 -7 ------------ Run | Yrd Mat Sub Mat Fac Was Fac Used RIF Installer . | . . . . . . . Robots Hacked . | . . . . . . . Non-combat . | . . . . . . . Combat . | . . . . . . . Robot Hacks Applied . | . . . . . . . Relay Couplers Released . | . . . . . . . Fabnet Peak Effective % . | . . . . . . . Robots Rewired . | . . . . . . . Allies Hacked . | . . . . . . . Hacks Repelled . | . . . . . . . Allies | -11 -10 -10 -8 -7 -7 -7 -------- Run | Yrd Mat Sub Mat Fac Was Fac Total Allies . | . . . . . . . Largest Group . | . . . . . . . Highest-Rated Group . | . . . . . . . Highest-Rated Ally . | . . . . . . . Total Orders . | . . . . . . . Ally Attacks . | . . . . . . . Total Damage . | . . . . . . . Kills . | . . . . . . . Allies Corrupted . | . . . . . . . Allies Melted . | . . . . . . . Intel | -11 -10 -10 -8 -7 -7 -7 ------- Run | Yrd Mat Sub Mat Fac Was Fac Robot Analysis Total 1 | . . . 1 . . . Derelict Logs Recovered . | . . . . . . . Drone Launches . | . . . . . . . Drone Recoveries . | . . . . . . . Exploration | -11 -10 -10 -8 -7 -7 -7 ------------- Run | Yrd Mat Sub Mat Fac Was Fac Turns Passed 4412 | 70 1102 624 1231 689 98 598 Spaces Moved 2767 | 57 699 435 615 550 108 303 Core 57 | 18 . . 5 . . 34 Treads 165 | . . . 165 . . . Legs 1049 | 39 699 114 197 . . . Wheels 1468 | . . 321 220 550 108 269 Hover 28 | . . . 28 . . . Flight . | . . . . . . . Fastest Speed 50 | 50 120 110 80 90 90 50 Average Speed 111 | 101 120 112 132 90 90 95 Slowest Speed 500 | 150 120 120 500 90 90 300 Overloaded Moves . | . . . . . . . Propulsion Burnouts . | . . . . . . . Robots Hopped . | . . . . . . . Cave-ins Triggered . | . . . . . . . Exploration Rate (%) 41 | 5 93 28 44 15 95 8 Regions Visited 6 Branch Regions 1 Pre-discovered Areas . | . . . . . . . Known Exits Taken 1 | . 1 . . . . . Unknown Exits Taken 3 | 1 . 1 1 . . . Scrap Searched 4 | . . 4 . . . . Spaces Dug 13 | . . . 6 7 . . Terrain Destroyed 25 | . . . 15 7 . 3 Melee 13 | . . . 6 7 . . Projectile 4 | . . . 1 . . 3 AOE 8 | . . . 8 . . . Terrain Rammed . | . . . . . . . Walls Destroyed . | . . . . . . . Machines Disabled . | . . . . . . . Actions | -11 -10 -10 -8 -7 -7 -7 --------- Run | Yrd Mat Sub Mat Fac Was Fac Total 3641 | 69 856 521 871 667 108 549 Wait 378 | . 52 32 72 52 1 169 Move 2762 | 56 698 434 614 550 107 303 Hop . | . . . . . . . Pick Up 92 | 7 15 11 32 9 . 18 Fast Attach . | . . . . . . . Attach 63 | 6 5 4 29 5 . 14 Detach 4 | . 1 . 2 1 . . Swap 36 | . 12 5 14 2 . 3 Drop 43 | . 8 8 16 3 . 8 Fire 166 | . 65 26 54 3 . 18 Melee 96 | . . . 38 42 . 16 Ram . | . . . . . . . Kick . | . . . . . . . Crush . | . . . . . . . Escape Stasis . | . . . . . . . Rewire . | . . . . . . . Trap . | . . . . . . . Miscellaneous 1 | . . 1 . . . . Route ------- -11/Scrapyard -10/Materials (discovered 6 exits: [*Mat x3] / *Min x2 / *Sub) -10/Subcaves -8/Materials -7/Factory -7/Waste -7/Factory (discovered 1 exit: [*Fac]) History --------- Turn | Location | Event 7 | -11/Scrapyard | Discovered new exit (range 15) 71 | -11/Scrapyard | Entered Materials 170 | -10/Materials | Discovered new exit (range 7) 177 | -10/Materials | Discovered new exit (range 16) 309 | -10/Materials | Build established: Mutant 533 | -10/Materials | Discovered new exit (range 12) 801 | -10/Materials | Repaired Lgt. Armor Plating 871 | -10/Materials | Derelicts attacked the area 905 | -10/Materials | Discovered new exit (range 15) 1012 | -10/Materials | Identified exit to Mines 1113 | -10/Materials | Discovered new exit (range 9) 1128 | -10/Materials | Discovered new exit (range 5) 1172 | -10/Materials | Identified exit to Subcaves 1173 | -10/Materials | Entered Subcaves 1203 | -10/Subcaves | Shifting Twisted Machinery released Mak. Flight Unit 1209 | -10/Subcaves | Shifting Twisted Machinery released Sub. Monowheel 1228 | -10/Subcaves | Disturbed a concealed Subdweller 1278 | -10/Subcaves | Ambushed by swarm of Subdwellers 1297 | -10/Subcaves | Core integrity fell below 50% 1319 | -10/Subcaves | Lost 3 allies 1325 | -10/Subcaves | Lost 3 parts (1p1u1w) 1392 | -10/Subcaves | Shifting Twisted Machinery released Riot Gun 1648 | -10/Subcaves | Build established: Subdweller-Mutant 1783 | -10/Subcaves | Discovered new exit (range 15) 1795 | -10/Subcaves | Core integrity fell below 20% 1797 | -10/Subcaves | Entered Materials 1797 | -8/Materials | Evolved 4 slots: Power x1, Propulsion x1, Utility x2 2521 | -8/Materials | Build established: Scavenger-Mutant 2817 | -8/Materials | Lost 3 parts (2u1w) 2921 | -8/Materials | Discovered new exit (range 16) 3028 | -8/Materials | Entered Factory 3028 | -7/Factory | Evolved 2 slots: Utility x2 3233 | -7/Factory | Build established: Mutant 3454 | -7/Factory | Lost 3 parts (2u1w) 3717 | -7/Factory | Sucked down chute 3717 | -7/Factory | Entered Waste 3724 | -7/Waste | Spotted C-40 Crusher 3730 | -7/Waste | Spotted C-40 Crusher 3732 | -7/Waste | EMP discharged 3756 | -7/Waste | Spotted C-40 Crusher 3776 | -7/Waste | Spotted C-40 Crusher 3784 | -7/Waste | Spotted C-40 Crusher 3792 | -7/Waste | Spotted C-40 Crusher 3806 | -7/Waste | Discovered new exit (range 11) 3815 | -7/Waste | Entered Factory 3839 | -7/Factory | Discovered new exit (range 12) 4062 | -7/Factory | Garrison activated, responded to threat 4305 | -7/Factory | Lost 4 parts (1p2n1w) 4354 | -7/Factory | Core integrity fell below 50% 4397 | -7/Factory | Core integrity fell below 20% 4413 | -7/Factory | Destroyed by S-27 Virus with Autogun Last Messages --------------- U-05 Engineer works on Subcomponent Replicator. System corrupted: Component data lost. U-05 Engineer works on Subcomponent Replicator. Com. Wheel destroyed. U-05 Engineer works on Subcomponent Replicator. Core Shielding destroyed. U-05 Engineer works on Subcomponent Replicator. S-27 Virus destroyed. U-05 Engineer works on Subcomponent Replicator. System corrupted: Energy discharge (-31). Com. Wheel destroyed. Axe destroyed. Hacking Suite destroyed. Acquired Shock Rifle. Melee Analysis Suite destroyed. Shock Rifle destroyed. Acquired Gauss Cannon. Chain reaction triggered in Lgt. Nuclear Core. S-27 Virus destroyed. Map ----- +----------------------------------------------------+ | ???????????????# #???????????????? | | ???????????????# #???????????????? | | ???????????????# #???????????????? | | ???????????????# #???????????????? | | ???????????????# #???????????????? | | ???????????????# #???????????????? | | ???????????????# #???????????????? | | ???????????????# #???????????????? | | ???????????????# #???????????????? | | ?????####+##########+#+####+#####???????????? | | ###### #???????????? | | #???????????? | | %[ +???????????? | | = #???????????? | | #???????????? | | """ #############p #???????????? | | """ #??????????#; #???????????? | | "" #?##########;;;# #???????????? | | " #?# % ; #???????????? | | """"" !!#?# s #???????????? | | """"" !!#?# " " " " " s# #???????????? | | """ #?# " " " " " # #???????????? | | #?# " " " " " # #???????????? | | """"" #?? " " " " " # #???????????? | | """"" #?? " " " " " # #???????????? | | """ #?? " " " " " @# #???????????? | | #???" " " " " # +???????????? | | #???" " " " " + #???????????? | | #???? " " " " # #???????????? | | ##??? # #???????????? | | #????############ #???????????? | | * """"" #?????????????# #???????????? | | * ""T"" #?????????????# #???????????? | | * #?????????????# #???????????? | | #?#####???????# #???????????? | | ### #???????# #???????????? | | ^ < #???????####+#####??????????? | | #####+### #???????# #??????????? | | #??# ## ##???????# #??????????? | | #+###### !## ########## """""" #??????????? | | % % %## ## # # """""" #??????????? | | % [""## ## # # """""" #??????????? | | %%""""## ## # # """""" #??????????? | | """"## ## # # #??????????? | | """"## ## # # #??????????? | | """"## ## # # #??????????? | | """"## + + #+########??????????? | | """"######## ########## ##????????????????? | | #??????# ######### #????????????????? | | #######??????# #????????????????? | +----------------------------------------------------+ Best States ------------- Heat Dissipation 48 Energy Generation 24 Energy Capacity 1500 Matter Stores 300 Matter Capacity 300 Sight Range 20 Robot Scan Range 14 Terrain Scan Density 10 Armor Coverage 800 Resistance: KI 20 Core Shielding 20 Evasion (%) 55 Melee Accuracy 5 Recoil Reduction 3 Offensive Hacking 20 Item Schematics ----------------- Hvy. Assault Rifle | -8/Materials | Scanalyzed Robot Schematics ------------------ None Fabricated ------------ Nothing Alien Tech Used ----------------- None Achievements -------------- None Challenges ------------ None Game ------ Seed TargetingThrowingPropulsion Manual? 0 Play Time 00:59:39 Cumulative 17.6 hours Start 2025.04.30 @ 20:35:22 End 2025.04.30 @ 22:09:47 Sessions 3 Manual Loads 0 Difficulty Rogue Special Mode None Game No. 17 Rogue 17 Adventurer 0 Explorer 0 Win Type - Total 0 Types 0/0/0/0/0/0/0/0/0 Lore% 12 Gallery% 19 Achievement% 17 Wizard Run 0 Options --------- Layout 1 ASCII 0 Keyboard 0 Movement Mouse Keybinds 0 Fullscreen 1 Font 24/Smallcaps Map View 50x35 Zoom Use 0% Tactical HUD 0 Map Filters NONE Filters NONE Steam 1 RUN: 0a6b3028-31b2-4056-8fab-26907f65cec7